bitfinex-derivatives/quotes_BTCF0:USTF0_20250710
["timestamp","ask_amount","ask_price","bid_price","bid_amount"]
[1752145489035,1.12494067,111140.0,111130.0,0.29353051]
[1752145489236,1.12494067,111140.0,111130.0,1.16554023]
[1752145490234,1.12494067,111140.0,111130.0,0.90793234]
[1752145490434,1.14812067,111140.0,111130.0,0.90793234]
[1752145493236,1.14812067,111140.0,111130.0,1.14853206]
[1752145493938,1.10981067,111140.0,111130.0,1.10830206]
[1752145494138,1.13299067,111140.0,111130.0,1.14647508]
[1752145494337,1.13299067,111140.0,111130.0,0.29079536]
[1752145494537,1.13299067,111140.0,111130.0,0.92220536]
[1752145495039,1.13299067,111140.0,111130.0,0.88970536]
[1752145500053,1.13299067,111140.0,111130.0,1.13030508]
[1752145500352,0.44870763,111140.0,111130.0,1.13030508]
[1752145500546,0.86919795,111140.0,111130.0,1.13030508]
[1752145500741,0.83599795,111140.0,111130.0,1.16190508]
[1752145501943,0.05470763,111140.0,111130.0,1.16190508]
[1752145502142,0.05470763,111140.0,111130.0,1.84422588]
[1752145502950,0.05470763,111140.0,111130.0,2.13882588]
[1752145503146,0.05470763,111140.0,111130.0,1.89822616]
[1752145503352,0.05470763,111140.0,111130.0,2.13882588]
[1752145503655,0.02279237,111140.0,111130.0,2.16587003]
[1752145503958,0.02279237,111140.0,111130.0,1.88483031]
[1752145504158,0.02079237,111140.0,111130.0,1.80097508]
[1752145504957,0.01879237,111140.0,111130.0,1.80097508]
[1752145505158,0.01879237,111140.0,111130.0,1.88180098]
[1752145509754,0.01879237,111140.0,111130.0,2.1224007]
[1752145509955,0.01879237,111140.0,111130.0,2.0415748]
[1752145510258,0.01879237,111140.0,111130.0,2.30230318]
[1752145511662,0.01879237,111140.0,111130.0,2.30330318]
[1752145512160,0.01879237,111140.0,111130.0,2.33050003]
[1752145512461,0.01879237,111140.0,111130.0,2.33150003]
[1752145513960,0.01879237,111140.0,111130.0,2.30739003]
[1752145514161,0.01879237,111140.0,111130.0,2.33150003]
[1752145514665,0.01879237,111140.0,111130.0,1.67034059]
[1752145514864,0.01879237,111140.0,111130.0,1.91094031]
[1752145515168,0.01879237,111140.0,111130.0,1.80297508]
[1752145515469,0.01879237,111140.0,111130.0,1.8029726]
[1752145517767,0.01879237,111140.0,111130.0,1.91093783]
[1752145523976,0.01879237,111140.0,111130.0,1.88682783]
[1752145524170,0.01879237,111140.0,111130.0,1.91055783]
[1752145525879,0.01879237,111140.0,111130.0,2.15115755]
[1752145526574,0.24059972,111150.0,111130.0,2.15115755]
[1752145526575,0.04171589,111160.0,111150.0,0.1798745]
[1752145526780,0.04263969,111160.0,111150.0,2.30478448]
[1752145526979,0.04263969,111160.0,111150.0,2.36678448]
[1752145526980,0.01091589,111160.0,111150.0,2.36678448]
[1752145527281,0.01091589,111160.0,111150.0,2.44747812]
[1752145527472,0.01091589,111160.0,111150.0,2.36678448]
[1752145527878,0.01291589,111160.0,111150.0,2.44748834]
[1752145528280,0.01291589,111160.0,111150.0,2.80828834]
[1752145528783,0.01291589,111160.0,111150.0,2.80779792]
[1752145528983,0.01491589,111160.0,111150.0,2.80779792]
[1752145529572,0.01291589,111160.0,111150.0,2.80779792]
[1752145529882,0.01291589,111160.0,111150.0,2.88117825]
[1752145530083,0.01091589,111160.0,111150.0,2.88117825]
[1752145530583,0.01091589,111160.0,111150.0,3.17577825]
[1752145534085,0.01091589,111160.0,111150.0,3.16049825]
[1752145534781,9e-08,111160.0,111150.0,3.16049825]
[1752145536283,9e-08,111160.0,111150.0,3.34042625]
[1752145536488,9e-08,111160.0,111150.0,3.36768762]
[1752145537788,9e-08,111160.0,111150.0,3.25972239]
[1752145538288,9e-08,111160.0,111150.0,3.36717431]
[1752145539181,9e-08,111160.0,111150.0,3.36817431]
[1752145540986,9e-08,111160.0,111150.0,3.26072239]
[1752145541290,9e-08,111160.0,111150.0,3.39544558]
[1752145542488,9e-08,111160.0,111150.0,3.39644558]
[1752145543492,9e-08,111160.0,111150.0,3.26172239]
[1752145543988,9e-08,111160.0,111150.0,3.23799239]
[1752145544188,9e-08,111160.0,111150.0,3.26172239]
[1752145544388,9e-08,111160.0,111150.0,3.36909025]
[1752145547695,9e-08,111160.0,111150.0,3.18916225]
[1752145550498,9e-08,111160.0,111150.0,3.18915783]
[1752145552192,9e-08,111160.0,111150.0,3.18922778]
[1752145553100,9e-08,111160.0,111150.0,3.08178997]
[1752145553698,9e-08,111160.0,111150.0,3.08179043]
[1752145554000,9e-08,111160.0,111150.0,3.05806043]
[1752145554201,9e-08,111160.0,111150.0,3.08115043]
[1752145554700,9e-08,111160.0,111150.0,3.21587362]
[1752145555198,0.03250009,111160.0,111150.0,3.21587362]
[1752145557203,9e-08,111160.0,111150.0,3.21587362]
[1752145562206,0.02720204,111180.0,111170.0,0.1798421]
[1752145562507,0.02720204,111180.0,111170.0,2.08113114]
[1752145562808,0.02720204,111180.0,111170.0,2.25306471]
[1752145563009,0.02720204,111180.0,111170.0,2.54766471]
[1752145563506,0.03120204,111180.0,111170.0,2.54766471]
[1752145564103,0.03120204,111180.0,111170.0,2.50810471]
[1752145564305,0.03120204,111180.0,111170.0,2.53119402]
[1752145567217,0.03120204,111180.0,111170.0,2.53119364]
[1752145575925,0.03120204,111180.0,111170.0,2.53119362]
[1752145576830,0.03120204,111180.0,111170.0,2.77139071]
[1752145577827,0.03120204,111180.0,111170.0,2.66375714]
[1752145579022,0.03120204,111180.0,111170.0,2.64970165]
[1752145579237,0.03120204,111180.0,111170.0,2.66375739]
[1752145579429,0.02211875,111180.0,111170.0,2.66375739]
[1752145579730,0.08790463,111190.0,111180.0,1.14862396]
[1752145580022,0.10360463,111190.0,111180.0,3.34154422]
[1752145580429,0.10360463,111190.0,111180.0,3.70234422]
[1752145580830,0.10660463,111190.0,111180.0,3.76394422]
[1752145581125,0.11060463,111190.0,111180.0,3.76394422]
[1752145581725,0.11060463,111190.0,111180.0,3.77305556]
[1752145582117,0.03420463,111190.0,111180.0,4.01333136]
[1752145582430,4e-08,111200.0,111190.0,0.1798098]
[1752145582622,4e-08,111200.0,111190.0,2.38529885]
[1752145583630,0.00200004,111200.0,111190.0,2.51986092]
[1752145584028,0.01770004,111200.0,111190.0,2.26316512]
[1752145584231,0.01770004,111200.0,111190.0,2.11841771]
[1752145584435,0.08150004,111200.0,111190.0,2.11841771]
[1752145584730,0.08050004,111200.0,111190.0,2.14535046]
[1752145584933,0.08050004,111200.0,111190.0,2.05054731]
[1752145585131,0.08050004,111200.0,111190.0,2.0646007]
[1752145585333,0.08050004,111200.0,111190.0,2.14525693]
[1752145587845,0.08050004,111200.0,111190.0,2.0646007]
[1752145588030,0.04990004,111200.0,111190.0,2.09610067]
[1752145588227,0.03420004,111200.0,111190.0,2.2071969]
[1752145588536,0.00100004,111200.0,111190.0,2.2071969]
[1752145588736,0.00100004,111200.0,111190.0,2.4474727]
[1752145591837,0.00100004,111200.0,111190.0,2.44744634]
[1752145592842,0.00100004,111200.0,111190.0,2.74204634]
[1752145593939,0.00100004,111200.0,111190.0,2.74204449]
[1752145595139,0.00100004,111200.0,111190.0,2.50176869]
[1752145598442,0.7175327,111210.0,111200.0,1.14759152]
[1752145598642,0.7332327,111210.0,111200.0,2.72435939]
[1752145598944,0.7332327,111210.0,111200.0,2.76510562]
[1752145599144,0.7332327,111210.0,111200.0,2.78857562]
[1752145599642,0.7342327,111210.0,111200.0,2.78857562]
[1752145600142,0.7342327,111210.0,111200.0,3.02885142]
[1752145600442,0.4939569,111210.0,111200.0,3.02885142]
[1752145600643,0.4949569,111210.0,111200.0,3.02885142]
[1752145603238,0.7352327,111210.0,111200.0,3.02885142]
[1752145603744,0.4949569,111210.0,111200.0,3.02885142]
[1752145603946,0.7352327,111210.0,111200.0,3.02885142]
[1752145604146,0.7125927,111210.0,111200.0,3.02885142]
[1752145604341,0.3517927,111210.0,111200.0,3.02885142]
[1752145604645,0.9150102,111210.0,111200.0,3.02885142]
[1752145605046,0.9150102,111210.0,111200.0,2.78857562]
[1752145605649,0.9150102,111210.0,111200.0,2.78855823]
[1752145606143,0.7352327,111210.0,111200.0,2.78855823]
[1752145606449,0.7352327,111210.0,111200.0,2.82025823]
[1752145607242,0.3744327,111210.0,111200.0,2.82025823]
[1752145607447,0.9150102,111210.0,111200.0,2.82025823]
[1752145608048,0.9150102,111210.0,111200.0,2.57998243]
[1752145608248,0.8923702,111210.0,111200.0,2.82025823]
[1752145608448,0.7125927,111210.0,111200.0,2.85195823]
[1752145609350,0.3517927,111210.0,111200.0,2.85195823]
[1752145609550,0.7125927,111210.0,111200.0,2.85195823]
[1752145610854,0.6799927,111210.0,111200.0,2.85195823]
[1752145611337,0.6799927,111210.0,111200.0,3.03853711]
[1752145611543,0.8597702,111210.0,111200.0,3.03856048]
[1752145612452,0.8597702,111210.0,111200.0,2.79828468]
[1752145614053,0.8440702,111210.0,111200.0,2.77481468]
[1752145614253,0.8600702,111210.0,111200.0,2.79756468]
[1752145614455,0.8600702,111210.0,111200.0,2.55728888]
[1752145614655,0.8600702,111210.0,111200.0,2.79756468]
[1752145615760,0.6642927,111210.0,111200.0,2.79756468]
[1752145616453,0.6802927,111210.0,111200.0,2.79756468]
[1752145616643,0.6484927,111210.0,111200.0,2.79756468]
[1752145617050,0.6324927,111210.0,111200.0,2.79756468]
[1752145617248,0.6484927,111210.0,111200.0,2.79756468]
[1752145617851,0.6484927,111210.0,111200.0,2.85141489]
[1752145618342,0.68014681,111210.0,111200.0,2.79756468]
[1752145619758,0.85992431,111210.0,111200.0,2.79756468]
[1752145621954,0.68014681,111210.0,111200.0,2.79756468]
[1752145622357,0.68014681,111210.0,111200.0,2.79758694]
[1752145623156,0.68014681,111210.0,111200.0,3.03786274]
[1752145623655,0.43987101,111210.0,111200.0,3.03786274]
[1752145624057,0.42287101,111210.0,111200.0,3.01611274]
[1752145624247,0.42287101,111210.0,111200.0,3.03886274]
[1752145624860,0.06207101,111210.0,111200.0,3.03886274]
[1752145625460,0.06107101,111210.0,111200.0,3.03886274]
[1752145626360,0.30134681,111210.0,111200.0,3.03886274]
[1752145626661,0.06107101,111210.0,111200.0,3.03886274]
[1752145626960,0.30134681,111210.0,111200.0,3.03886274]
[1752145627460,0.06107101,111210.0,111200.0,3.03886274]
[1752145628353,0.06107101,111210.0,111200.0,3.03886253]
[1752145628951,0.06107101,111210.0,111200.0,3.03886252]
[1752145630264,0.06107101,111210.0,111200.0,3.39966252]
[1752145630456,0.0294169,111210.0,111200.0,3.42669986]
[1752145630860,0.06106795,111210.0,111200.0,3.42669986]
[1752145631163,0.0294169,111210.0,111200.0,3.42669986]
[1752145633363,0.0294169,111210.0,111200.0,3.31906629]
[1752145634366,0.0294169,111210.0,111200.0,3.61366629]
[1752145636262,0.0294169,111210.0,111200.0,3.69440736]
[1752145636764,0.06105525,111210.0,111200.0,3.69440736]
[1752145636971,0.06105525,111210.0,111200.0,3.68035419]
[1752145637267,0.06105525,111210.0,111200.0,3.69439258]
[1752145639566,0.0294169,111210.0,111200.0,3.61365151]
[1752145640272,0.0294169,111210.0,111200.0,3.85392731]
[1752145640477,0.00906198,111220.0,111200.0,3.91660448]
[1752145640663,0.00906198,111220.0,111210.0,2.40061623]
[1752145640863,0.04085299,111220.0,111210.0,2.44615462]
[1752145641970,0.04085299,111220.0,111210.0,2.5178463]
[1752145642760,0.00906198,111220.0,111210.0,2.5178463]
[1752145644174,0.00906198,111220.0,111210.0,2.4786363]
[1752145644374,0.00906198,111220.0,111210.0,2.5018263]
[1752145645173,0.01006198,111220.0,111210.0,2.5018263]
[1752145645368,0.01106198,111220.0,111210.0,2.5018263]
[1752145646076,0.01106198,111220.0,111210.0,2.7964263]
[1752145649873,0.01106198,111220.0,111210.0,2.3158747]
[1752145650176,0.01106198,111220.0,111210.0,2.7964263]
[1752145650878,0.01106198,111220.0,111210.0,2.4356263]
[1752145651078,0.01106198,111220.0,111210.0,2.7964263]
[1752145651977,0.04277776,111220.0,111210.0,2.7964263]
[1752145654385,0.01828937,111230.0,111220.0,0.1797613]
[1752145654680,0.01828937,111230.0,111220.0,2.44469842]
[1752145655073,0.01828937,111230.0,111220.0,3.41249634]
[1752145655475,0.01928937,111230.0,111220.0,3.46625289]
[1752145655690,0.02028937,111230.0,111220.0,3.46625289]
[1752145656784,7e-08,111230.0,111220.0,3.70652869]
[1752145657091,7e-08,111230.0,111220.0,3.65278353]
[1752145657785,0.02932053,111240.0,111230.0,0.1797452]
[1752145658085,0.02932053,111240.0,111230.0,2.41222667]
[1752145658286,0.02932053,111240.0,111230.0,2.43541667]
[1752145658491,0.02932053,111240.0,111230.0,2.46240621]
[1752145660590,0.02932053,111240.0,111230.0,2.46440621]
[1752145661094,0.02932053,111240.0,111230.0,2.75900621]
[1752145661294,0.02932053,111240.0,111230.0,2.76000621]
[1752145661496,0.02932053,111240.0,111230.0,2.7599946]
[1752145663191,0.02932053,111240.0,111230.0,2.4653946]
[1752145664188,0.02932053,111240.0,111230.0,2.50300596]
[1752145664493,0.02932053,111240.0,111230.0,2.4493746]
[1752145664799,0.02932053,111240.0,111230.0,2.50300595]
[1752145665107,0.02932053,111240.0,111230.0,2.4493746]
[1752145665407,0.02932053,111240.0,111230.0,2.50300198]
[1752145667203,0.02932053,111240.0,111230.0,2.26272618]
[1752145667395,0.28474633,111240.0,111230.0,0.56977905]
[1752145667599,0.55165533,111240.0,111230.0,1.16052905]
[1752145667802,0.55165533,111240.0,111230.0,1.14479905]
[1752145667997,0.55165533,111240.0,111230.0,0.23693587]
[1752145668310,0.79193113,111240.0,111230.0,0.86662587]
[1752145668607,0.73272633,111240.0,111230.0,1.10690167]
[1752145669704,0.73272633,111240.0,111230.0,1.10688962]
[1752145669906,0.70954633,111240.0,111230.0,1.10688962]
[1752145670707,1.15273113,111240.0,111230.0,0.49292962]
[1752145670905,0.91229732,111240.0,111230.0,0.86661382]
[1752145671209,0.67217953,111240.0,111230.0,0.86661382]
[1752145671409,0.67217953,111240.0,111230.0,0.86654163]
[1752145672210,0.91229732,111240.0,111230.0,0.86654163]
[1752145673910,0.91229732,111240.0,111230.0,0.25258163]
[1752145674116,0.91229732,111240.0,111230.0,0.86654163]
[1752145674412,0.91229732,111240.0,111230.0,0.82805163]
[1752145674601,0.91229732,111240.0,111230.0,0.85081163]
[1752145674802,0.91229732,111240.0,111230.0,0.86654163]
[1752145675004,0.91229732,111240.0,111230.0,0.82805163]
[1752145675205,0.91229732,111240.0,111230.0,0.21945802]
[1752145675401,0.91229732,111240.0,111230.0,0.81065802]
[1752145675811,0.91229732,111240.0,111230.0,0.81939301]
[1752145676910,0.91329732,111240.0,111230.0,0.81739301]
[1752145677316,0.91329732,111240.0,111230.0,0.81735301]
[1752145678514,1.09309733,111240.0,111230.0,0.81735301]
[1752145679313,1.09309733,111240.0,111230.0,0.81639301]
[1752145679715,0.85297954,111240.0,111230.0,0.83022419]
[1752145680017,1.09309733,111240.0,111230.0,0.83022419]
[1752145680414,1.09309733,111240.0,111230.0,0.21626419]
[1752145680614,1.09309733,111240.0,111230.0,0.19357628]
[1752145683314,1.09309733,111240.0,111230.0,0.19358186]
[1752145684110,1.05476733,111240.0,111230.0,0.19358186]
[1752145684314,1.07794733,111240.0,111230.0,0.19358186]
[1752145685014,1.07794733,111240.0,111230.0,0.21634186]
[1752145685815,0.89814732,111240.0,111230.0,0.21634186]
[1752145686016,0.91329732,111240.0,111230.0,0.21634186]
[1752145688721,0.94497076,111240.0,111230.0,0.21634186]
[1752145689321,0.94497076,111240.0,111230.0,0.2025051]
[1752145689720,0.94497076,111240.0,111230.0,0.21637186]
[1752145690822,1.18516643,111240.0,111230.0,0.21637186]
[1752145693527,0.82436643,111240.0,111230.0,0.21637186]
[1752145693822,1.54596643,111240.0,111230.0,0.21637186]
[1752145694024,1.50763643,111240.0,111230.0,0.19361186]
[1752145694225,1.53081643,111240.0,111230.0,0.21637186]
[1752145696027,1.53081643,111240.0,111230.0,0.23210186]
[1752145696227,1.53081643,111240.0,111230.0,0.26280186]
[1752145696423,1.05050297,111240.0,111230.0,0.26280186]
[1752145696726,1.53081643,111240.0,111230.0,0.29390186]
[1752145697328,1.49781643,111240.0,111230.0,0.29390186]
[1752145704127,1.47463643,111240.0,111230.0,0.25541186]
[1752145704334,1.49781643,111240.0,111230.0,0.28016186]
[1752145705035,1.49781643,111240.0,111230.0,0.29559186]
[1752145705535,1.47463643,111240.0,111230.0,0.29559186]
[1752145705731,1.49781643,111240.0,111230.0,0.29559186]
[1752145706437,1.46681643,111240.0,111230.0,0.29559186]
[1752145709135,1.46681643,111240.0,111230.0,0.25541186]
[1752145709330,1.53031643,111240.0,111230.0,0.28016186]
[1752145711340,0.80871643,111240.0,111230.0,0.28016186]
[1752145711540,1.54606643,111240.0,111230.0,0.28016186]
[1752145714139,1.50713643,111240.0,111230.0,0.25541186]
[1752145714334,1.53031643,111240.0,111230.0,0.28016186]
[1752145717944,1.61120254,111240.0,111230.0,0.28016186]
[1752145718142,1.13088908,111240.0,111230.0,0.29559186]
[1752145718342,1.54770254,111240.0,111230.0,0.29559186]
[1752145718650,1.52452254,111240.0,111230.0,0.29559186]
[1752145718839,1.54770254,111240.0,111230.0,0.29559186]
[1752145720446,0.82610254,111240.0,111230.0,0.29559186]
[1752145720743,1.56345254,111240.0,111230.0,0.29559186]
[1752145720942,1.54770254,111240.0,111230.0,0.29559186]
[1752145722249,1.54770254,111240.0,111230.0,0.29560424]
[1752145724450,0.82610254,111240.0,111230.0,0.29560424]
[1752145724650,1.54770254,111240.0,111230.0,0.29560424]
[1752145727852,1.46681643,111240.0,111230.0,0.29560424]
[1752145739957,1.46681643,111240.0,111230.0,0.29577643]
[1752145740767,1.43514299,111240.0,111230.0,0.29577643]
[1752145740966,1.46769811,111240.0,111230.0,0.29577643]
[1752145741870,1.46769811,111240.0,111230.0,0.2817251]
[1752145742074,1.46769811,111240.0,111230.0,0.29577643]
[1752145750771,0.74609811,111240.0,111230.0,0.29577643]
[1752145750977,1.48324811,111240.0,111230.0,0.29577643]
[1752145755382,1.51494811,111240.0,111230.0,0.29577643]
[1752145757479,0.79334811,111240.0,111230.0,0.29577643]
[1752145757680,1.51494811,111240.0,111230.0,0.29577643]
[1752145757980,1.59583422,111240.0,111230.0,0.29577643]
[1752145762187,1.59583422,111240.0,111230.0,0.10060133]
[1752145762789,1.62873422,111240.0,111230.0,0.01405133]
[1752145762993,1.62873422,111240.0,111230.0,0.62941133]
[1752145765288,1.54784811,111240.0,111230.0,0.62941133]
[1752145766299,1.62873422,111240.0,111230.0,0.62941133]
[1752145767799,1.62873422,111240.0,111230.0,0.65246133]
[1752145768104,1.54784811,111240.0,111230.0,0.65246133]
[1752145768499,1.62873422,111240.0,111230.0,0.65246133]
[1752145770309,1.54784811,111240.0,111230.0,0.65246133]
[1752145771009,1.62873422,111240.0,111230.0,0.65246133]
[1752145771209,0.90713422,111240.0,111230.0,0.65246133]
[1752145771408,1.62873422,111240.0,111230.0,0.65246133]
[1752145772511,1.54784811,111240.0,111230.0,0.65246133]
[1752145773413,1.62873422,111240.0,111230.0,0.65246133]
[1752145774503,1.62873422,111240.0,111230.0,0.68556184]
[1752145774815,1.14842076,111240.0,111230.0,0.68556184]
[1752145775018,1.62873422,111240.0,111230.0,0.68556184]
[1752145775210,1.62873422,111240.0,111230.0,0.71576184]
[1752145776713,1.62873422,111240.0,111230.0,0.73090184]
[1752145777113,1.64783035,111240.0,111230.0,0.73090184]
[1752145779114,1.61493035,111240.0,111230.0,0.73090184]
[1752145780814,0.89333035,111240.0,111230.0,0.73090184]
[1752145781015,1.61493035,111240.0,111230.0,0.73090184]
[1752145782016,1.53404424,111240.0,111230.0,0.73090184]
[1752145783218,0.81244424,111240.0,111230.0,0.73090184]
[1752145783418,1.53404424,111240.0,111230.0,0.73090184]
[1752145785220,0.81244424,111240.0,111230.0,0.73090184]
[1752145785619,1.53404424,111240.0,111230.0,0.73090184]
[1752145788119,0.81244424,111240.0,111230.0,0.73090184]
[1752145788323,1.53404424,111240.0,111230.0,0.73090184]
[1752145788521,1.61493035,111240.0,111230.0,0.73090184]
[1752145790018,1.85508708,111240.0,111230.0,0.07735184]
[1752145790215,0.1797451,111230.0,111220.0,0.96779792]
[1752145790410,0.1797451,111230.0,111220.0,0.98108416]
[1752145790411,1.76846368,111230.0,111220.0,0.98108416]
[1752145790717,1.83897415,111230.0,111220.0,0.96779792]
[1752145791121,2.07913088,111230.0,111220.0,0.96779792]
[1752145791426,2.07913088,111230.0,111220.0,0.96879792]
[1752145791617,1.83897415,111230.0,111220.0,0.96879792]
[1752145792122,1.83897415,111230.0,111220.0,0.98199428]
[1752145792324,1.83897415,111230.0,111220.0,0.98299428]
[1752145792524,1.91986026,111230.0,111220.0,0.96979792]
[1752145793022,1.83897415,111230.0,111220.0,0.98303263]
[1752145793913,2.07913088,111230.0,111220.0,0.23508447]
[1752145794219,2.07913088,111230.0,111220.0,0.22184976]
[1752145794520,2.16001699,111230.0,111220.0,0.22184976]
[1752145795025,2.33983299,111230.0,111220.0,0.22184976]
[1752145795613,2.25894688,111230.0,111220.0,0.22184976]
[1752145795817,2.25894688,111230.0,111220.0,0.23513432]
[1752145796623,2.07913088,111230.0,111220.0,0.23513432]
[1752145797326,2.07913088,111230.0,111220.0,0.23514717]
[1752145797824,2.07913088,111230.0,111220.0,0.22184976]
[1752145798716,2.16001699,111230.0,111220.0,0.22184976]
[1752145799320,2.52081699,111230.0,111220.0,0.22184976]
[1752145801527,2.28066026,111230.0,111220.0,0.22184976]
[1752145802435,2.70063299,111230.0,111220.0,0.22184976]
[1752145803928,0.1797774,111210.0,111200.0,0.08804]
[1752145804131,2.04796134,111210.0,111200.0,0.11790433]
[1752145804320,2.07114134,111210.0,111200.0,0.11790433]
[1752145804527,2.04796134,111210.0,111200.0,0.13186096]
[1752145804734,2.07114134,111210.0,111200.0,0.13186096]
[1752145805422,2.08025449,111210.0,111200.0,0.13586096]
[1752145805722,2.08025449,111210.0,111200.0,0.13886096]
[1752145806631,2.08025449,111210.0,111200.0,0.12490433]
[1752145807732,2.08025449,111210.0,111200.0,0.13885792]
[1752145808233,2.08025449,111210.0,111200.0,0.12490433]
[1752145809530,2.08025449,111210.0,111200.0,0.13886652]
[1752145810033,2.08025449,111210.0,111200.0,0.12491353]
[1752145813635,2.08025449,111210.0,111200.0,0.11157]
[1752145817136,2.08025449,111210.0,111200.0,1.11157]
[1752145818338,1.35865449,111210.0,111200.0,1.11157]
[1752145818638,2.08025449,111210.0,111200.0,1.11157]
[1752145818835,1.35865449,111210.0,111200.0,1.11157]
[1752145819030,2.08025449,111210.0,111200.0,1.11157]
[1752145820242,2.08025449,111210.0,111200.0,1.12494645]
[1752145823543,2.08025449,111210.0,111200.0,1.13893981]
[1752145830152,1.35865449,111210.0,111200.0,1.13893981]
[1752145830644,2.08025449,111210.0,111200.0,1.13893981]
[1752145830951,2.08025449,111210.0,111200.0,1.1389575]
[1752145831945,2.16101358,111210.0,111200.0,1.1389575]
[1752145833153,2.16101358,111210.0,111200.0,1.13896128]
[1752145836851,1.43941358,111210.0,111200.0,1.13896128]
[1752145837052,2.16101358,111210.0,111200.0,1.13896128]
[1752145839055,2.16101358,111210.0,111200.0,1.13898265]
[1752145841452,1.43941358,111210.0,111200.0,1.13898265]
[1752145841652,2.16101358,111210.0,111200.0,1.13898265]
[1752145846456,1.43941358,111210.0,111200.0,1.13898265]
[1752145846653,2.16101358,111210.0,111200.0,1.13898265]
[1752145847855,2.16101358,111210.0,111200.0,1.13896317]
[1752145848057,2.18810264,111210.0,111200.0,1.13896317]
[1752145850857,2.18810264,111210.0,111200.0,1.13896301]
[1752145851357,2.18810264,111210.0,111200.0,1.11412301]
[1752145851550,2.22500749,111210.0,111200.0,1.11412301]
[1752145851745,2.14405449,111210.0,111200.0,1.11412301]
[1752145851950,2.14405449,111210.0,111200.0,1.12437048]
[1752145852152,2.2250046,111210.0,111200.0,1.12437048]
[1752145852349,2.14405449,111210.0,111200.0,1.12437048]
[1752145852556,2.14405449,111210.0,111200.0,1.12337048]
[1752145852760,2.14405449,111210.0,111200.0,1.04364048]
[1752145852955,2.14405449,111210.0,111200.0,1.01939048]
[1752145853258,2.14405449,111210.0,111200.0,1.01839048]
[1752145853859,2.25190264,111210.0,111200.0,1.01839048]
[1752145854057,2.14405449,111210.0,111200.0,1.01439048]
[1752145854251,2.14405449,111210.0,111200.0,1.01639048]
[1752145854759,2.14405449,111210.0,111200.0,1.01439048]
[1752145855663,2.49205937,111210.0,111200.0,1.01439048]
[1752145856264,2.25190264,111210.0,111200.0,1.01439048]
[1752145857566,2.25190264,111210.0,111200.0,1.03864048]
[1752145857761,2.25190264,111210.0,111200.0,1.01439048]
[1752145858059,2.22495432,111210.0,111200.0,1.01439048]
[1752145859569,2.14405449,111210.0,111200.0,1.01439048]
[1752145860668,2.14405449,111210.0,111200.0,1.03864048]
[1752145860862,2.14405449,111210.0,111200.0,1.02525]
[1752145861166,2.25190264,111210.0,111200.0,1.001]
[1752145861366,2.14405449,111210.0,111200.0,1.001]
[1752145861566,2.25190264,111210.0,111200.0,1.02525]
[1752145861765,2.25190264,111210.0,111200.0,1.001]
[1752145861965,2.14405449,111210.0,111200.0,1.02525]
[1752145862474,1.74462034,111210.0,111200.0,1.03877147]
[1752145862678,2.2249338,111210.0,111200.0,1.03877147]
[1752145862971,2.2249338,111210.0,111200.0,1.06947147]
[1752145863166,2.2249338,111210.0,111200.0,1.10267147]
[1752145863571,2.2249338,111210.0,111200.0,1.08915]
[1752145864872,2.14405449,111210.0,111200.0,1.08915]
[1752145866171,2.25190264,111210.0,111200.0,1.08915]
[1752145866767,1.77158918,111210.0,111200.0,1.08915]
[1752145866968,2.25190264,111210.0,111200.0,1.08915]
[1752145871476,2.22120264,111210.0,111200.0,1.08915]
[1752145873278,2.2212593,111210.0,111200.0,1.08915]
[1752145875880,2.11341115,111210.0,111200.0,1.08915]
[1752145877282,2.08031115,111210.0,111200.0,1.08915]
[1752145878084,2.1881593,111210.0,111200.0,1.08915]
[1752145882487,2.08031115,111210.0,111200.0,1.08915]
[1752145886288,2.21512134,111210.0,111200.0,1.08915]
[1752145886788,2.32306576,111210.0,111200.0,1.08915]
[1752145886991,2.18825557,111210.0,111200.0,1.08915]
[1752145887288,2.4284123,111210.0,111200.0,1.001]
[1752145887488,2.51887807,111210.0,111200.0,1.001]
[1752145888090,2.27872134,111210.0,111200.0,0.90267308]
[1752145888679,2.14391115,111210.0,111200.0,0.90267308]
[1752145888884,2.27885798,111210.0,111200.0,0.90267308]
[1752145890089,1.79854452,111210.0,111200.0,0.91774308]
[1752145890293,2.24645798,111210.0,111200.0,0.98284308]
[1752145895894,2.51771471,111210.0,111200.0,0.87954308]
[1752145896098,2.27755798,111210.0,111200.0,0.87954308]
[1752145896494,2.51771471,111210.0,111200.0,0.87954308]
[1752145898091,2.27755798,111210.0,111200.0,0.87954308]
[1752145898392,2.14261115,111210.0,111200.0,0.87954308]
[1752145899697,2.38276788,111210.0,111200.0,0.87954308]
[1752145899899,2.51771471,111210.0,111200.0,0.87954308]
[1752145900090,2.27755798,111210.0,111200.0,0.87954308]
[1752145901000,2.27755798,111210.0,111200.0,0.91774308]
[1752145901298,2.27755798,111210.0,111200.0,0.98334308]
[1752145901698,2.25054847,111210.0,111200.0,0.98334308]
[1752145904200,2.14261115,111210.0,111200.0,0.98334308]
[1752145904400,2.27755798,111210.0,111200.0,0.98334308]
[1752145907797,2.24645798,111210.0,111200.0,0.98334308]
[1752145911908,2.21525798,111210.0,111200.0,0.98334308]
[1752145912805,1.49365798,111210.0,111200.0,0.98334308]
[1752145913008,2.21525798,111210.0,111200.0,0.98334308]
[1752145913407,2.08031115,111210.0,111200.0,0.98334308]
[1752145916410,2.18823198,111210.0,111200.0,0.98334308]
[1752145922315,2.08031115,111210.0,111200.0,0.98334308]
[1752145923319,2.21525798,111210.0,111200.0,0.98334308]
[1752145924123,2.21481108,111210.0,111200.0,0.98334308]
[1752145928221,2.07986425,111210.0,111200.0,0.86188073]
[1752145928421,2.26859851,111210.0,111200.0,0.86188073]
[1752145929219,2.04725247,111210.0,111200.0,0.86188073]
[1752145929620,2.18219633,111210.0,111200.0,0.86188073]
[1752145935023,2.04725247,111210.0,111200.0,0.86188073]
[1752145938128,2.18219186,111210.0,111200.0,0.86188073]
[1752145939522,1.46059186,111210.0,111200.0,0.86188073]
[1752145939730,2.18219186,111210.0,111200.0,0.86188073]
[1752145942126,2.04725247,111210.0,111200.0,0.86188073]
[1752145942522,2.18219122,111210.0,111200.0,0.86188073]
[1752145944131,2.21411656,111210.0,111200.0,0.86188073]
[1752145945426,1.59927656,111210.0,111200.0,0.86188073]
[1752145945631,2.21311656,111210.0,111200.0,0.86188073]
[1752145948534,2.21307656,111210.0,111200.0,0.86188073]
[1752145952631,1.81752258,111210.0,111200.0,0.88941423]
[1752145952835,1.81480108,111210.0,111200.0,1.74337096]
[1752145953638,1.81480108,111210.0,111200.0,1.71583746]
[1752145953837,1.20100108,111210.0,111200.0,1.71583746]
[1752145954036,1.92274056,111210.0,111200.0,1.71583746]
[1752145954435,1.92274056,111210.0,111200.0,1.47568073]
[1752145954838,2.16289729,111210.0,111200.0,1.47568073]
[1752145957434,1.44129729,111210.0,111200.0,1.47568073]
[1752145957738,2.16289729,111210.0,111200.0,1.47568073]
[1752145957934,2.16289729,111210.0,111200.0,0.86188073]
[1752145958133,2.07813781,111210.0,111200.0,0.86188073]
[1752145958529,1.46433781,111210.0,111200.0,0.86188073]
[1752145958736,2.07809781,111210.0,111200.0,0.86188073]
[1752145959040,2.18603729,111210.0,111200.0,0.86188073]